bitfinex-derivatives/quotes_SOLF0:USTF0_20241206
["timestamp","ask_amount","ask_price","bid_price","bid_amount"]
[1733462863029,5.71492796,240.84,240.76,5.71492796]
[1733462863228,2.0748,240.83,240.76,5.71492796]
[1733462863429,5.71492796,240.84,240.76,5.71492796]
[1733462864728,7.78962796,240.84,240.79,2.0751]
[1733462865825,5.71492796,240.8,240.75,0.37292]
[1733462866831,5.71492796,240.76,240.75,0.37292]
[1733462868126,2.06,240.8,240.75,0.37292]
[1733462868431,1.2553,240.87,240.75,0.37292]
[1733462868631,5.71492796,240.82,240.75,0.37292]
[1733462868931,5.71492796,240.82,240.79,2.0751]
[1733462869132,5.71492796,240.82,240.75,0.37292]
[1733462870226,2.06,240.86,240.75,0.37292]
[1733462870425,5.71492796,240.82,240.75,0.37292]
[1733462870629,5.71492796,240.82,240.77,2.0752]
[1733462872833,5.71492796,240.8,240.77,2.0752]
[1733462873436,5.71492796,240.8,240.76,2.0754]
[1733462873635,5.71492796,240.8,240.75,0.37292]
[1733462874333,7.78992796,240.8,240.75,0.37292]
[1733462874842,1.2553,240.87,240.75,0.37292]
[1733462874843,5.71492796,240.78,240.75,0.37292]
[1733462875537,5.71492796,240.78,240.73,2.0756]
[1733462875737,7.79012796,240.78,240.72,2.0757]
[1733462875938,5.71492796,240.78,240.69,5.71492796]
[1733462876237,5.71492796,240.78,240.73,2.0756]
[1733462879633,5.71492796,240.78,240.67,2.52298]
[1733462879832,7.79012796,240.78,240.69,5.71492796]
[1733462880640,7.79012796,240.78,240.72,2.0757]
[1733462884438,5.71492796,240.79,240.74,2.0755]
[1733462884639,5.71492796,240.79,240.7,5.71492796]
[1733462885135,1.2553,240.87,240.72,5.71492796]
[1733462885441,5.71492796,240.84,240.76,5.71492796]
[1733462885633,5.71492796,240.82,240.74,7.77492796]
[1733462886534,5.71492796,240.8,240.74,2.06]
[1733462886742,5.71492796,240.8,240.72,5.71492796]
[1733462886950,5.71492796,240.78,240.67,0.46298]
[1733462887148,5.71492796,240.78,240.69,5.71492796]
[1733462887750,1.2553,240.87,240.73,5.71492796]
[1733462887951,5.71492796,240.84,240.75,5.71492796]
[1733462888348,5.71492796,240.84,240.79,2.0751]
[1733462889453,5.71492796,240.84,240.75,5.71492796]
[1733462889655,1.2553,240.87,240.8,2.075]
[1733462889856,5.71492796,240.84,240.8,2.075]
[1733462892255,5.71492796,240.85,240.81,2.0749]
[1733462893154,5.71492796,240.85,240.76,5.71492796]
[1733462893355,5.71492796,240.85,240.8,2.075]
[1733462894463,5.71492796,240.83,240.8,2.075]
[1733462894863,5.71492796,240.83,240.78,2.0751]
[1733462895362,5.71492796,240.83,240.75,5.71492796]
[1733462895557,7.77492796,240.83,240.73,5.71492796]
[1733462895763,5.71492796,240.81,240.73,5.71492796]
[1733462896063,7.78992796,240.81,240.76,2.0754]
[1733462896760,7.78992796,240.81,240.75,2.0755]
[1733462897367,2.075,240.8,240.74,2.0755]
[1733462898061,5.71492796,240.79,240.74,2.0755]
[1733462898763,5.71492796,240.79,240.71,7.05542796]
[1733462898962,7.79002796,240.79,240.72,2.0756]
[1733462899170,7.79002796,240.79,240.71,7.05542796]
[1733462899463,7.79002796,240.79,240.71,1.3405]
[1733462899658,5.71492796,240.79,240.7,0.41794]
[1733462899864,5.71492796,240.72,240.7,0.41794]
[1733462900269,7.79062796,240.72,240.7,0.41794]
[1733462900567,5.71492796,240.74,240.7,0.41794]
[1733462901759,7.79052796,240.74,240.7,0.41794]
[1733462902765,2.0757,240.73,240.7,0.41794]
[1733462903969,4.6993,240.77,240.7,0.41794]
[1733462904271,5.71492796,240.75,240.7,0.41794]
[1733462904773,2.0751,240.8,240.71,2.0758]
[1733462904972,5.71492796,240.76,240.7,0.41794]
[1733462905575,5.71492796,240.76,240.7,2.49374]
[1733462908280,5.71492796,240.74,240.7,0.41794]
[1733462909782,5.71492796,240.72,240.7,0.41794]
[1733462910776,5.71492796,240.72,240.63,5.71492796]
[1733462911175,5.71492796,240.69,240.53,4.13723977]
[1733462911376,5.71492796,240.67,240.61,2.0766]
[1733462912779,7.79112796,240.67,240.61,2.0766]
[1733462913781,2.0763,240.66,240.6,0.53378]
[1733462914782,2.0763,240.66,240.6,2.61058]
[1733462915484,5.71492796,240.67,240.6,2.61058]
[1733462915678,5.71492796,240.67,240.61,2.0766]
[1733462918785,2.6219,240.73,240.6,0.53378]
[1733462918786,5.71492796,240.7,240.66,2.0762]
[1733462918986,5.71492796,240.7,240.62,5.71492796]
[1733462919184,5.71492796,240.7,240.62,7.77492796]
[1733462920085,5.71492796,240.7,240.65,2.0763]
[1733462920486,5.71492796,240.7,240.64,2.0764]
[1733462920883,5.71492796,240.7,240.6,0.53378]
[1733462921084,5.71492796,240.68,240.6,0.53378]
[1733462921687,7.79102796,240.68,240.62,2.0765]
[1733462925787,5.71492796,240.66,240.62,2.0765]
[1733462927087,7.79102796,240.68,240.62,2.0765]
[1733462928490,5.71492796,240.68,240.62,2.0765]
[1733462928790,5.71492796,240.69,240.6,5.71492796]
[1733462928988,1.3374,240.72,240.61,2.06]
[1733462929187,5.71492796,240.69,240.61,2.06]
[1733462929589,5.71492796,240.67,240.61,2.06]
[1733462929787,5.71492796,240.67,240.63,2.0765]
[1733462931191,5.71492796,240.67,240.61,2.06]
[1733462931691,5.71492796,240.67,240.58,1.3494]
[1733462931889,5.71492796,240.65,240.58,1.3494]
[1733462932491,5.71492796,240.65,240.61,2.0767]
[1733462933894,5.71492796,240.65,240.58,1.3494]
[1733462934097,5.71492796,240.65,240.62,2.0766]
[1733462937104,2.06,240.68,240.6,5.71492796]
[1733462937502,5.71492796,240.7,240.6,5.71492796]
[1733462938205,5.71492796,240.68,240.6,5.71492796]
[1733462939194,5.71492796,240.68,240.58,1.3494]
[1733462939398,5.71492796,240.68,240.59,6.75388961]
[1733462939599,5.71492796,240.68,240.64,2.0764]
[1733462940502,5.71492796,240.68,240.59,5.71492796]
[1733462940803,7.79102796,240.68,240.63,2.0764]
[1733462941101,5.71492796,240.68,240.63,2.0764]
[1733462941902,5.71492796,240.68,240.59,5.71492796]
[1733462941903,2.06,240.72,240.67,2.0762]
[1733462942104,5.71492796,240.7,240.67,2.0762]
[1733462944006,5.71492796,240.68,240.61,2.0767]
[1733462944203,5.71492796,240.68,240.62,1.03893346]
[1733462944403,5.71492796,240.68,240.59,5.71492796]
[1733462944603,5.71492796,240.68,240.6,5.55160384]
[1733462944803,5.71492796,240.66,240.63,2.0765]
[1733462946197,5.71492796,240.66,240.64,2.0764]
[1733462946401,5.71492796,240.66,240.58,7.06432796]
[1733462946696,5.71492796,240.66,240.59,5.55218621]
[1733462946901,5.71492796,240.66,240.6,3.88980295]
[1733462947202,5.71492796,240.66,240.58,7.06432796]
[1733462947203,5.71492796,240.66,240.64,2.0764]
[1733462947400,5.71492796,240.66,240.58,7.06432796]
[1733462947597,5.71492796,240.66,240.59,3.88999]
[1733462947801,5.71492796,240.66,240.63,2.0765]
[1733462952305,5.71492796,240.66,240.64,2.0766]
[1733462954508,2.0765,240.65,240.6,2.0769]
[1733462954708,5.71492796,240.63,240.6,2.0769]
[1733462956203,5.71492796,240.61,240.6,2.0769]
[1733462956403,5.71492796,240.63,240.56,7.77492796]
[1733462956609,5.71492796,240.65,240.58,5.71492796]
[1733462956806,2.5727,240.71,240.59,1.03912877]
[1733462957011,5.71492796,240.68,240.6,5.71492796]
[1733462957511,5.71492796,240.68,240.61,1.03900148]
[1733462957707,5.71492796,240.68,240.6,5.71492796]
[1733462957907,5.71492796,240.66,240.61,1.03897829]
[1733462958104,5.71492796,240.66,240.63,2.0766]
[1733462959811,115.0,240.92,240.62,7.77492796]
[1733462960005,5.71492796,240.75,240.66,5.71492796]
[1733462960313,5.71492796,240.75,240.67,1.0390067]
[1733462960506,5.71492796,240.75,240.66,5.71492796]
[1733462960707,5.71492796,240.75,240.67,1.03881819]
[1733462960913,5.71492796,240.75,240.7,2.076]
[1733462961710,5.71492796,240.73,240.65,5.71492796]
[1733462961911,5.71492796,240.73,240.66,3.89293962]
[1733462962214,5.71492796,240.73,240.65,5.71492796]
[1733462962413,5.71492796,240.73,240.66,1.03880187]
[1733462962613,5.71492796,240.73,240.65,5.71492796]
[1733462962813,5.71492796,240.73,240.66,1.03880202]
[1733462963115,5.71492796,240.73,240.65,5.71492796]
[1733462963411,5.71492796,240.73,240.66,1.03883018]
[1733462963609,5.71492796,240.73,240.68,2.0762]
[1733462963807,2.06,240.8,240.64,3.8918]
[1733462964012,5.71492796,240.71,240.65,1.03886363]
[1733462964211,5.71492796,240.71,240.64,1.2582]
[1733462964514,5.71492796,240.71,240.67,2.0763]
[1733462965312,5.71492796,240.71,240.64,1.2582]
[1733462965508,5.71492796,240.71,240.66,2.0764]
[1733462966112,7.79092796,240.71,240.64,3.3347]
[1733462966305,5.71492796,240.69,240.64,2.0765]
[1733462966708,5.71492796,240.69,240.62,2.0767]
[1733462967112,5.71492796,240.69,240.6,7.77492796]
[1733462967912,7.79112796,240.69,240.6,7.77492796]
[1733462968719,7.79112796,240.69,240.6,2.06]
[1733462969013,2.0762,240.68,240.62,2.0767]
[1733462969214,5.71492796,240.67,240.62,2.0767]
[1733462970317,5.71492796,240.67,240.63,2.0767]
[1733462971715,5.71492796,240.67,240.57,1.265]
[1733462972215,5.71492796,240.67,240.58,5.71492796]
[1733462972418,2.06,240.7,240.58,5.71492796]
[1733462972619,5.71492796,240.68,240.58,5.71492796]
[1733462973217,2.076,240.69,240.59,1.0390291]
[1733462973417,5.71492796,240.68,240.59,1.0390291]
[1733462973619,5.71492796,240.68,240.58,5.71492796]
[1733462973823,5.71492796,240.68,240.59,1.03902142]
[1733462974024,7.79102796,240.68,240.61,2.0767]
[1733462974223,7.79102796,240.68,240.58,5.71492796]
[1733462974423,7.79102796,240.68,240.59,3.89236941]
[1733462974618,7.79102796,240.68,240.58,5.71492796]
[1733462974619,7.79102796,240.68,240.6,1.03904209]
[1733462974816,7.79102796,240.68,240.61,1.03904209]
[1733462975020,7.79102796,240.68,240.58,5.71492796]
[1733462975217,7.79102796,240.68,240.59,3.89225831]
[1733462975527,7.79102796,240.68,240.6,1.03902256]
[1733462975727,7.79102796,240.68,240.58,5.71492796]
[1733462976029,7.79102796,240.68,240.59,3.8923514]
[1733462976224,7.79102796,240.68,240.6,1.03902842]
[1733462976429,5.71492796,240.66,240.57,3.325]
[1733462976625,5.71492796,240.66,240.58,5.55491691]
[1733462976926,5.71492796,240.66,240.62,2.0765]
[1733462977423,2.0762,240.67,240.61,2.0766]
[1733462977727,5.71492796,240.67,240.58,5.71492796]
[1733462977926,5.71492796,240.67,240.59,3.89232186]
[1733462978121,2.06,240.78,240.64,5.71492796]
[1733462978427,5.71492796,240.75,240.65,1.0388718]
[1733462978626,5.71492796,240.71,240.67,2.0761]
[1733462978824,5.71492796,240.69,240.67,2.0761]
[1733462979020,5.71492796,240.69,240.64,2.06]
[1733462979629,5.71492796,240.69,240.59,7.77492796]
[1733462979926,5.71492796,240.69,240.64,2.0764]
[1733462980325,5.71492796,240.69,240.61,5.71492796]
[1733462980527,5.71492796,240.69,240.62,1.0389729]
[1733462980725,5.71492796,240.69,240.61,5.71492796]
[1733462980925,5.71492796,240.69,240.62,1.0389729]
[1733462981126,5.71492796,240.69,240.61,5.71492796]
[1733462981524,5.71492796,240.66,240.6,2.0767]
[1733462982129,5.71492796,240.66,240.57,1.265]
[1733462982320,7.79112796,240.66,240.61,2.0766]
[1733462982928,7.79112796,240.66,240.57,1.265]
[1733462983129,7.79112796,240.66,240.58,3.89221033]
[1733462983428,7.79112796,240.66,240.57,1.265]
[1733462983627,7.79112796,240.66,240.58,2.85315629]
[1733462983924,5.71492796,240.66,240.57,6.97992796]
[1733462984131,5.71492796,240.66,240.6,2.0767]
[1733462985233,5.71492796,240.66,240.59,2.0768]
[1733462985429,5.71492796,240.66,240.57,6.97992796]
[1733462986032,7.79122796,240.66,240.61,2.0766]
[1733462988524,5.71492796,240.66,240.61,2.0766]
[1733462991329,5.71492796,240.66,240.62,2.0765]
[1733462992631,5.71492796,240.64,240.57,1.265]
[1733462992829,5.71492796,240.59,240.58,2.85287147]
[1733462993139,5.71492796,240.59,240.55,2.0771]
[1733462993333,5.71492796,240.59,240.56,3.89193789]
[1733462993533,2.06,240.62,240.58,2.0769]
[1733462993729,7.77492796,240.62,240.58,2.0769]
[1733462995639,5.71492796,240.6,240.53,5.71492796]
[1733462995836,5.71492796,240.6,240.54,3.89168339]
[1733462996035,5.71492796,240.6,240.5,9.02742796]
[1733462996233,5.71492796,240.6,240.51,8.45648343]
[1733462996535,5.71492796,240.6,240.55,2.0772]
[1733462998033,7.79182796,240.58,240.5,2.0776]
[1733462998236,5.71492796,240.56,240.51,2.8510218]
[1733462998537,5.71492796,240.56,240.48,5.71492796]
[1733462998838,5.71492796,240.56,240.49,8.45200321]
[1733462999049,5.71492796,240.56,240.5,3.89033594]
[1733462999242,5.71492796,240.56,240.48,5.71492796]
[1733462999243,5.71492796,240.56,240.51,2.85101624]
[1733462999558,7.79182796,240.58,240.5,5.71492796]
[1733462999639,7.79182796,240.58,240.53,2.0773]
[1733463001137,2.06,240.59,240.56,2.0771]
[1733463001335,5.71492796,240.6,240.52,5.71492796]
[1733463001538,2.06,240.62,240.56,5.71492796]
[1733463001734,2.06,240.63,240.56,5.71492796]
[1733463001945,5.71492796,240.64,240.56,5.71492796]
[1733463002135,2.06,240.65,240.56,5.71492796]
[1733463002941,2.06,240.65,240.61,2.0766]
[1733463003642,7.77492796,240.65,240.61,2.0766]
[1733463003840,5.71492796,240.65,240.61,2.0766]
[1733463004032,7.77492796,240.65,240.61,2.0766]
[1733463004237,1.294,240.76,240.61,2.0766]
[1733463004238,2.06,240.7,240.65,2.0762]
[1733463004434,5.71492796,240.71,240.65,2.0762]
[1733463004636,5.71492796,240.69,240.65,2.0762]
[1733463005235,2.06,240.73,240.61,2.0766]
[1733463005236,5.71492796,240.67,240.61,2.0766]
[1733463005947,5.71492796,240.65,240.61,2.0766]
[1733463008343,5.71492796,240.7,240.61,5.71492796]
[1733463008977,7.79082796,240.7,240.64,2.0763]
[1733463009154,5.71492796,240.68,240.58,1.311]
[1733463009450,2.06,240.71,240.58,7.02592796]
[1733463009643,5.71492796,240.67,240.59,2.85143703]
[1733463009842,5.71492796,240.67,240.58,7.02592796]
[1733463010457,5.71492796,240.67,240.62,2.0765]
[1733463010950,5.71492796,240.67,240.58,7.02592796]
[1733463011143,7.79102796,240.67,240.58,7.02592796]
[1733463011339,5.71492796,240.67,240.59,2.85202089]
[1733463011535,2.076,240.69,240.63,2.0765]
[1733463011742,7.79092796,240.69,240.6,5.71492796]
[1733463012140,7.79092796,240.69,240.63,2.0764]
[1733463012690,7.79112796,240.67,240.61,2.0766]
[1733463013550,2.0763,240.66,240.6,2.0767]
[1733463013851,5.71492796,240.65,240.6,2.0767]
[1733463014044,5.71492796,240.65,240.57,1.2273]
[1733463014251,7.79162796,240.61,240.55,2.67529]
[1733463014746,2.0768,240.6,240.55,0.59819]
[1733463018050,1.294,240.76,240.55,0.59819]
[1733463018353,1.294,240.76,240.57,5.71492796]
[1733463018354,5.71492796,240.66,240.57,5.71492796]
[1733463018757,5.71492796,240.64,240.58,2.0769]
[1733463019654,7.79132796,240.64,240.58,2.0769]
[1733463019953,7.79132796,240.64,240.55,6.31311796]
[1733463019954,5.71492796,240.64,240.56,2.077]
[1733463020154,2.0763,240.66,240.57,5.71492796]
[1733463020352,2.0763,240.66,240.6,2.0767]
[1733463020551,5.71492796,240.65,240.6,2.0767]
[1733463020752,2.0763,240.66,240.61,5.71492796]
[1733463021751,2.0763,240.65,240.61,5.71492796]
[1733463022065,1.294,240.76,240.63,5.71492796]
[1733463022252,2.0761,240.68,240.63,7.79142796]
[1733463022755,2.06,240.7,240.63,7.79142796]
[1733463023252,7.77492796,240.7,240.63,5.71492796]
[1733463023600,2.06,240.7,240.63,5.71492796]
[1733463023752,2.076,240.69,240.58,2.06]
[1733463023952,2.076,240.69,240.65,5.71492796]
[1733463024160,2.06,240.7,240.65,5.71492796]
[1733463024347,2.06,240.7,240.63,5.71492796]
[1733463024956,2.0762,240.67,240.63,5.71492796]
[1733463026153,7.77492796,240.7,240.58,2.06]
[1733463026357,7.77492796,240.7,240.61,5.71492796]
[1733463026556,2.0762,240.67,240.61,7.79152796]
[1733463026759,2.06,240.7,240.63,5.71492796]
[1733463027661,2.076,240.68,240.63,5.71492796]
[1733463027857,2.06,240.7,240.63,5.71492796]
[1733463028051,7.77492796,240.7,240.61,5.71492796]
[1733463028258,2.0762,240.67,240.61,5.71492796]
[1733463028557,7.77492796,240.7,240.61,5.71492796]
[1733463028856,2.0764,240.64,240.57,2.077]
[1733463029158,2.0764,240.64,240.59,5.71492796]
[1733463029458,2.0765,240.63,240.59,5.71492796]
[1733463030154,2.0765,240.63,240.56,2.0771]
[1733463030359,2.0765,240.63,240.59,5.71492796]
[1733463030857,2.0762,240.66,240.61,5.71492796]
[1733463032265,1.294,240.76,240.65,5.71492796]
[1733463032466,5.71492796,240.74,240.65,5.71492796]
[1733463033071,2.0759,240.7,240.65,5.71492796]
[1733463033362,2.06,240.7,240.6,1.3168]
[1733463033569,2.06,240.7,240.62,5.71492796]
[1733463033765,7.77492796,240.7,240.62,5.71492796]
[1733463034359,7.77492796,240.7,240.6,1.3168]
[1733463034360,2.0763,240.65,240.6,1.3168]
[1733463034762,2.0763,240.65,240.61,5.71492796]
[1733463036060,2.0762,240.66,240.61,5.71492796]
[1733463037159,7.77492796,240.7,240.61,5.71492796]
[1733463039666,2.0763,240.66,240.61,5.71492796]
[1733463042466,7.77492796,240.7,240.6,1.3168]
[1733463042467,2.06,240.69,240.65,5.71492796]
[1733463042667,2.06,240.7,240.65,5.71492796]
[1733463042868,5.71492796,240.73,240.65,5.71492796]
[1733463043063,2.06,240.72,240.65,5.71492796]
[1733463043264,2.06,240.72,240.6,1.3168]
[1733463043460,5.71492796,240.71,240.6,1.3168]
[1733463043665,5.71492796,240.71,240.61,5.71492796]
[1733463044371,2.0762,240.66,240.61,5.71492796]
[1733463046974,4.1361,240.67,240.61,5.71492796]
[1733463048074,2.0762,240.66,240.61,5.71492796]
[1733463048472,2.06,240.67,240.61,7.79152796]
[1733463048783,2.06,240.67,240.63,5.71492796]
[1733463048978,2.06,240.67,240.6,1.3168]
[1733463050076,2.06,240.67,240.6,1.3168]
[1733463050375,2.06,240.68,240.61,5.71492796]
[1733463050877,2.0762,240.66,240.61,5.71492796]
[1733463052677,2.06,240.68,240.57,2.077]
[1733463052678,2.0765,240.63,240.57,2.077]
[1733463052881,2.0765,240.63,240.59,5.71492796]
[1733463053175,2.0764,240.65,240.59,7.79172796]
[1733463053375,7.77492796,240.68,240.59,5.71492796]
[1733463053682,2.0762,240.66,240.59,7.79172796]
[1733463054479,2.0762,240.66,240.61,5.71492796]
[1733463054779,2.06,240.68,240.63,5.71492796]
[1733463054976,5.71492796,240.67,240.58,5.71492796]
[1733463055673,2.06,240.68,240.58,5.71492796]
[1733463055871,5.71492796,240.67,240.58,5.71492796]
[1733463056581,2.0765,240.63,240.58,5.71492796]
[1733463057680,5.71492796,240.67,240.58,5.71492796]
[1733463058676,2.0765,240.63,240.58,5.71492796]
[1733463058872,5.71492796,240.65,240.54,2.06]
[1733463059073,5.71492796,240.65,240.11,3.65323695]
[1733463059074,5.71492796,240.63,240.47,39.43491385]
[1733463059273,5.71492796,240.63,240.35,45.79480353]
[1733463059274,2.0771,240.56,240.49,6.39042796]
[1733463059474,2.06,240.55,240.49,6.39042796]
[1733463060178,4.1372,240.55,240.49,6.39042796]
[1733463060380,7.77492796,240.55,240.49,0.6755]
[1733463060579,2.06,240.55,240.49,0.6755]
[1733463060984,2.0773,240.54,240.49,0.6755]
[1733463061281,2.06,240.55,240.49,0.6755]
[1733463062076,2.06,240.55,240.52,5.71492796]
[1733463062675,2.06,240.55,240.5,5.71492796]
[1733463063285,2.06,240.55,240.49,2.7532]
[1733463063485,2.06,240.55,240.49,8.46812796]
[1733463064082,2.06,240.55,240.5,2.0776]
[1733463064888,2.0766,240.62,240.55,2.0772]
[1733463065085,4.1366,240.62,240.55,2.0772]
[1733463065294,5.71492796,240.61,240.55,2.0772]
[1733463065889,5.71492796,240.61,240.53,5.71492796]
[1733463066992,5.71492796,240.61,240.55,2.0772]
[1733463067787,5.71492796,240.61,240.5,3.8479]
[1733463067987,5.71492796,240.59,240.51,5.71492796]
[1733463068998,7.79192796,240.57,240.5,3.8479]
[1733463069195,9.85192796,240.57,240.5,3.8479]
[1733463069794,7.77492796,240.57,240.5,3.8479]
[1733463070003,7.77492796,240.57,240.51,2.0775]
[1733463070998,5.71492796,240.52,240.39,4.54937656]
[1733463071196,5.71492796,240.52,240.15,143.0332666]
[1733463071197,4.6031,240.51,240.38,5.71492796]
[1733463071398,5.71492796,240.49,240.38,5.71492796]
[1733463072001,2.078,240.46,240.38,5.71492796]
[1733463072300,2.078,240.46,240.32,1.2539]
[1733463072301,5.71492796,240.49,240.39,5.71492796]
[1733463072702,2.0779,240.47,240.39,5.71492796]
[1733463072999,2.06,240.5,240.41,5.71492796]
[1733463073801,2.06,240.5,240.41,6.48066796]
[1733463073802,2.0778,240.48,240.41,6.48066796]
[1733463074906,2.06,240.5,240.42,2.0783]
[1733463075297,2.06,240.5,240.41,0.76574]
[1733463075502,2.0778,240.48,240.41,0.76574]
[1733463076303,7.79272796,240.48,240.41,0.76574]
[1733463076505,2.078,240.46,240.41,0.76574]
[1733463077104,7.79272796,240.48,240.41,0.76574]
[1733463078209,5.71492796,240.45,240.41,0.76574]
[1733463080506,5.71492796,240.42,240.41,0.76574]
[1733463080709,5.71492796,240.42,240.41,0.35494]
[1733463081713,7.77492796,240.42,240.41,0.35494]
[1733463086912,7.77492796,240.42,240.28,7.79442796]
[1733463087120,5.71492796,240.37,240.28,7.79442796]
[1733463087410,2.06,240.36,240.28,7.79442796]
[1733463088611,2.0789,240.35,240.28,7.79442796]
[1733463089212,2.0789,240.35,240.3,5.71492796]
[1733463089413,2.0789,240.35,240.28,2.0795]
[1733463089608,2.0789,240.35,240.29,5.71492796]
[1733463090220,2.0789,240.35,240.31,0.52914]
[1733463090918,2.079,240.34,240.31,0.52914]
[1733463097415,2.079,240.34,240.14,4.10392369]
[1733463097416,5.71492796,240.33,240.13,4.10392369]
[1733463097617,2.06,240.36,240.15,1.3339]
[1733463097821,5.71492796,240.28,240.19,5.71492796]
[1733463098013,2.14,240.27,240.19,5.71492796]
[1733463098222,2.0798,240.25,240.17,7.79532796]
[1733463098521,5.71492796,240.26,240.17,5.71492796]
[1733463098924,5.71492796,240.24,240.15,1.3339]
[1733463099513,2.08,240.22,240.15,1.3339]
[1733463099714,5.71492796,240.24,240.15,1.3339]
[1733463100221,2.14,240.27,240.03,4.10392369]
[1733463100222,5.71492796,240.16,240.03,4.10392369]
[1733463100523,5.71492796,240.16,239.96,96.26868124]
[1733463100524,7.85492796,240.16,240.07,5.71492796]
[1733463100721,2.0807,240.14,240.07,7.79622796]
[1733463101216,2.14,240.16,240.09,5.71492796]
[1733463101422,4.2206,240.16,240.09,5.71492796]
[1733463101923,4.2206,240.16,240.09,7.03632796]
[1733463102520,4.2206,240.16,240.09,1.3214]
[1733463102925,0.4827,240.37,240.12,5.71492796]
[1733463103223,5.71492796,240.21,240.11,5.71492796]
[1733463103425,5.71492796,240.19,240.09,1.3214]
[1733463103628,2.14,240.18,240.09,7.03632796]
[1733463103826,2.14,240.18,240.09,1.3214]
[1733463103827,2.0807,240.14,240.09,1.3214]
[1733463104222,5.71492796,240.17,240.09,1.3214]
[1733463104523,2.14,240.18,240.11,5.71492796]
[1733463106022,2.14,240.18,240.15,2.0806]
[1733463106527,2.14,240.18,240.11,5.71492796]
[1733463106919,2.14,240.2,240.11,5.71492796]
[1733463107723,5.71492796,240.19,240.09,1.3214]
[1733463107920,5.71492796,240.19,240.1,2.70996953]
[1733463108125,5.71492796,240.19,240.09,7.03632796]
[1733463108320,5.71492796,240.19,240.1,2.70988438]
[1733463108629,2.0804,240.18,240.12,2.0809]
[1733463109333,2.0806,240.16,240.11,2.081]
[1733463109927,2.0806,240.16,240.09,3.4025]
[1733463110223,2.0806,240.15,240.09,3.4025]
[1733463110428,7.79552796,240.15,240.1,2.0811]
[1733463110624,2.0808,240.14,240.09,1.3214]
[1733463110930,2.0808,240.14,240.06,1.3329]
[1733463111124,2.0808,240.14,240.07,2.71084059]
[1733463111326,2.0808,240.14,240.09,2.0811]
[1733463111630,7.85492796,240.15,240.09,2.0811]
[1733463112028,2.14,240.15,240.1,2.081]
[1733463112428,2.14,240.19,240.1,5.71492796]
[1733463112625,1.3813,240.36,240.1,5.71492796]
[1733463112626,7.85492796,240.2,240.1,5.71492796]
[1733463112824,7.85492796,240.2,240.07,2.14]
[1733463112825,1.3813,240.36,240.14,5.71492796]
[1733463113031,5.71492796,240.25,240.16,5.71492796]
[1733463113631,5.71492796,240.25,240.2,2.0802]
[1733463113830,5.71492796,240.25,240.16,5.71492796]
[1733463114929,5.71492796,240.25,240.15,3.8457]
[1733463114930,7.85492796,240.28,240.18,5.71492796]
[1733463115131,5.71492796,240.28,240.18,5.71492796]
[1733463115631,1.2813,240.36,240.21,5.71492796]
[1733463115833,5.71492796,240.3,240.21,5.71492796]
[1733463116227,5.71492796,240.3,240.25,2.0797]
[1733463116534,5.71492796,240.3,240.21,5.71492796]
[1733463118032,2.14,240.34,240.19,2.14]
[1733463118033,8.98710584,240.28,240.19,2.14]
[1733463118437,8.98710584,240.28,240.22,2.08]
[1733463118732,2.0794,240.29,240.22,2.08]
[1733463120038,8.98710584,240.32,240.22,2.08]
[1733463120639,2.0794,240.3,240.23,2.0799]
[1733463122141,2.0792,240.31,240.23,2.0799]
[1733463123143,4.2192,240.31,240.23,2.0799]
[1733463124042,2.0795,240.28,240.21,2.0801]
[1733463124643,2.0796,240.27,240.2,2.0802]
[1733463125035,8.98710584,240.28,240.15,3.8457]
[1733463125240,8.98710584,240.28,240.19,2.0803]
[1733463125241,2.0797,240.26,240.19,2.0803]
[1733463125942,11.06670584,240.28,240.2,2.0801]
[1733463126143,8.98710584,240.28,240.2,2.0801]
[1733463126344,8.98710584,240.28,240.15,3.8457]
[1733463126742,8.98710584,240.28,240.22,2.08]
[1733463127745,8.98710584,240.28,240.23,2.0799]
[1733463130144,8.98710584,240.28,240.19,2.08]
[1733463130341,2.14,240.31,240.24,2.0798]
[1733463130939,8.98710584,240.32,240.19,2.08]
[1733463131145,43.32,240.47,240.19,2.08]
[1733463131146,11.06710584,240.35,240.19,11.06710584]
[1733463131345,2.08,240.34,240.19,11.06710584]
[1733463132347,2.08,240.34,240.23,2.0799]